[Event "Titled Tuesday Blitz March 08 Early 2022"]
[White "Necula, Iulian"]
[Black "Ianov, Viktor"]
[WhiteFideId "1232380"]
[BlackFideId "14102730"]
[WhiteElo "1776"]
[BlackElo "2161"]
[Result "0-1"]
[Round "07"]
[TimeControl "180+1"]
[Date "2022.03.09"]
[WhiteClock "0:00:09"]
[BlackClock "0:01:27"]

1. b4 {[%clk 0:03:00]}  d6 {[%clk 0:02:58]} 2. Bb2 {[%clk 0:03:00]}  Nd7 {[%clk 0:02:58]} 3. Nf3 {[%clk 0:02:59]}  Ngf6 {[%clk 0:02:58]} 4. c4 {[%clk 0:02:57]}  g6 {[%clk 0:02:58]} 5. d4 {[%clk 0:02:57]}  Bg7 {[%clk 0:02:58]} 6. Nc3 {[%clk 0:02:56]}  O-O {[%clk 0:02:58]} 7. e4 {[%clk 0:02:56]}  e5 {[%clk 0:02:58]} 8. d5 {[%clk 0:02:56]}  a5 {[%clk 0:02:57]} 9. a3 {[%clk 0:02:54]}  Nh5 {[%clk 0:02:55]} 10. g3 {[%clk 0:02:52]}  f5 {[%clk 0:02:50]} 11. Bg2 {[%clk 0:02:49]}  Ndf6 {[%clk 0:02:48]} 12. exf5 {[%clk 0:02:48]}  Bxf5 {[%clk 0:02:46]} 13. Nh4 {[%clk 0:02:44]}  Bg4 {[%clk 0:02:44]} 14. Qd2 {[%clk 0:02:33]}  axb4 {[%clk 0:02:39]} 15. axb4 {[%clk 0:02:33]}  Rxa1+ {[%clk 0:02:38]} 16. Bxa1 {[%clk 0:02:34]}  Qd7 {[%clk 0:02:37]} 17. h3 {[%clk 0:02:30]}  Bf5 {[%clk 0:02:33]} 18. Nxf5 {[%clk 0:02:29]}  gxf5 {[%clk 0:02:30]} 19. O-O {[%clk 0:02:13]}  f4 {[%clk 0:02:29]} 20. g4 {[%clk 0:02:10]}  f3 {[%clk 0:02:29]} 21. gxh5 {[%clk 0:02:03]}  fxg2 {[%clk 0:02:28]} 22. Kxg2 {[%clk 0:02:04]}  Nxh5 {[%clk 0:02:27]} 23. Ne2 {[%clk 0:01:44]}  Qf5 {[%clk 0:02:27]} 24. f3 {[%clk 0:01:18]}  Rf6 {[%clk 0:02:21]} 25. Qe1 {[%clk 0:00:23]}  Rg6+ {[%clk 0:02:14]} 26. Kh2 {[%clk 0:00:20]}  Qc2 {[%clk 0:02:09]} 27. Rf2 {[%clk 0:00:19]}  Qxc4 {[%clk 0:02:08]} 28. Bc3 {[%clk 0:00:17]}  Bh6 {[%clk 0:02:04]} 29. Bd2 {[%clk 0:00:16]}  Qxd5 {[%clk 0:01:57]} 30. Bxh6 {[%clk 0:00:15]}  Rxh6 {[%clk 0:01:56]} 31. Rg2+ {[%clk 0:00:15]}  Rg6 {[%clk 0:01:56]} 32. Qg1 {[%clk 0:00:15]}  Kg7 {[%clk 0:01:52]} 33. Rxg6+ {[%clk 0:00:14]}  hxg6 {[%clk 0:01:49]} 34. Ng3 {[%clk 0:00:14]}  Qxf3 {[%clk 0:01:46]} 35. Qg2 {[%clk 0:00:15]}  Qxg2+ {[%clk 0:01:44]} 36. Kxg2 {[%clk 0:00:15]}  Nf4+ {[%clk 0:01:44]} 37. Kf3 {[%clk 0:00:15]}  Nd5 {[%clk 0:01:44]} 38. Ne4 {[%clk 0:00:16]}  Nxb4 {[%clk 0:01:42]} 39. h4 {[%clk 0:00:17]}  d5 {[%clk 0:01:41]} 40. Ng5 {[%clk 0:00:18]}  c6 {[%clk 0:01:40]} 41. Ne6+ {[%clk 0:00:17]}  Kf6 {[%clk 0:01:40]} 42. Nd8 {[%clk 0:00:18]}  b5 {[%clk 0:01:38]} 43. Ke3 {[%clk 0:00:19]}  Kf5 {[%clk 0:01:37]} 44. Kd2 {[%clk 0:00:14]}  d4 {[%clk 0:01:37]} 45. Kc1 {[%clk 0:00:13]}  e4 {[%clk 0:01:37]} 46. Kb2 {[%clk 0:00:12]}  e3 {[%clk 0:01:37]} 47. Kc1 {[%clk 0:00:12]}  d3 {[%clk 0:01:36]} 48. Nf7 {[%clk 0:00:10]}  Ke4 {[%clk 0:01:33]} 49. Nd6+ {[%clk 0:00:10]}  Kf3 {[%clk 0:01:33]} 50. h5 {[%clk 0:00:09]}  gxh5 {[%clk 0:01:32]} 51. Nf5 {[%clk 0:00:08]}  d2+ {[%clk 0:01:32]} 52. Kb2 {[%clk 0:00:08]}  d1=Q {[%clk 0:01:30]} 53. Nd4+ {[%clk 0:00:08]}  Qxd4+ {[%clk 0:01:29]} 54. Kb3 {[%clk 0:00:09]}  Qc4+ {[%clk 0:01:30]} 55. Ka3 {[%clk 0:00:09]}  Qc3# {[%clk 0:01:27]} 0-1


[Site "https://www.chess.com"]

[Event "Titled Tuesday Blitz March 08 Early 2022"]
[White "Nguyen Hong Nhung"]
[Black "Maksimovic, Bojan"]
[WhiteFideId "12412201"]
[BlackFideId "14408120"]
[WhiteElo "1661"]
[BlackElo "2448"]
[Result "0-1"]
[Round "07"]
[TimeControl "180+1"]
[Date "2022.03.09"]
[WhiteClock "0:00:11"]
[BlackClock "0:00:14"]

1. e4 {[%clk 0:03:00]}  c5 {[%clk 0:02:39]} 2. Nc3 {[%clk 0:02:59]}  Nc6 {[%clk 0:02:34]} 3. Bb5 {[%clk 0:02:59]}  Nd4 {[%clk 0:02:32]} 4. Bc4 {[%clk 0:02:59]}  a6 {[%clk 0:02:31]} 5. a4 {[%clk 0:02:58]}  e6 {[%clk 0:02:22]} 6. Nge2 {[%clk 0:02:58]}  Nf6 {[%clk 0:02:21]} 7. O-O {[%clk 0:02:56]}  d5 {[%clk 0:02:22]} 8. exd5 {[%clk 0:02:57]}  exd5 {[%clk 0:02:22]} 9. Ba2 {[%clk 0:02:57]}  Bd6 {[%clk 0:02:20]} 10. Nxd4 {[%clk 0:02:49]}  cxd4 {[%clk 0:02:20]} 11. Ne2 {[%clk 0:02:48]}  d3 {[%clk 0:02:20]} 12. cxd3 {[%clk 0:02:47]}  Be6 {[%clk 0:02:17]} 13. Nd4 {[%clk 0:02:44]}  Qc7 {[%clk 0:02:16]} 14. h3 {[%clk 0:02:41]}  O-O-O {[%clk 0:02:12]} 15. b4 {[%clk 0:02:35]}  Kb8 {[%clk 0:02:06]} 16. Ba3 {[%clk 0:02:33]}  Be5 {[%clk 0:02:04]} 17. Rc1 {[%clk 0:02:32]}  Qb6 {[%clk 0:02:00]} 18. Nf3 {[%clk 0:02:24]}  Bd6 {[%clk 0:01:56]} 19. Re1 {[%clk 0:02:09]}  Rc8 {[%clk 0:01:50]} 20. Rb1 {[%clk 0:02:07]}  Bf5 {[%clk 0:01:39]} 21. Rb3 {[%clk 0:02:02]}  h5 {[%clk 0:01:36]} 22. b5 {[%clk 0:01:57]}  Bxa3 {[%clk 0:01:28]} 23. Rxa3 {[%clk 0:01:55]}  a5 {[%clk 0:01:28]} 24. Re5 {[%clk 0:01:49]}  Be6 {[%clk 0:01:25]} 25. Rc3 {[%clk 0:01:45]}  Qd6 {[%clk 0:00:59]} 26. Qe2 {[%clk 0:01:30]}  h4 {[%clk 0:00:53]} 27. Rg5 {[%clk 0:01:16]}  g6 {[%clk 0:00:47]} 28. Re5 {[%clk 0:01:10]}  Rxc3 {[%clk 0:00:38]} 29. dxc3 {[%clk 0:01:10]}  Rc8 {[%clk 0:00:39]} 30. Nxh4 {[%clk 0:01:01]}  Rxc3 {[%clk 0:00:38]} 31. Qe1 {[%clk 0:00:57]}  Qc7 {[%clk 0:00:31]} 32. Kh2 {[%clk 0:00:45]}  Nd7 {[%clk 0:00:28]} 33. f4 {[%clk 0:00:45]}  Nxe5 {[%clk 0:00:28]} 34. fxe5 {[%clk 0:00:46]}  Rxd3 {[%clk 0:00:28]} 35. Bb1 {[%clk 0:00:41]}  Rd4 {[%clk 0:00:27]} 36. Nf3 {[%clk 0:00:41]}  Rxa4 {[%clk 0:00:28]} 37. Qd2 {[%clk 0:00:36]}  Rb4 {[%clk 0:00:28]} 38. Bd3 {[%clk 0:00:36]}  Qc5 {[%clk 0:00:27]} 39. Qh6 {[%clk 0:00:33]}  a4 {[%clk 0:00:27]} 40. Qh8+ {[%clk 0:00:33]}  Ka7 {[%clk 0:00:28]} 41. Qd8 {[%clk 0:00:33]}  Qb6 {[%clk 0:00:20]} 42. Qe7 {[%clk 0:00:32]}  Rb3 {[%clk 0:00:20]} 43. Bc2 {[%clk 0:00:32]}  Rxf3 {[%clk 0:00:20]} 44. gxf3 {[%clk 0:00:27]}  Qf2+ {[%clk 0:00:20]} 45. Kh1 {[%clk 0:00:27]}  Qxc2 {[%clk 0:00:21]} 46. b6+ {[%clk 0:00:26]}  Kxb6 {[%clk 0:00:20]} 47. Qb4+ {[%clk 0:00:26]}  Kc6 {[%clk 0:00:21]} 48. Qd6+ {[%clk 0:00:25]}  Kb5 {[%clk 0:00:20]} 49. Qb8 {[%clk 0:00:23]}  Qc1+ {[%clk 0:00:17]} 50. Kg2 {[%clk 0:00:23]}  Qd2+ {[%clk 0:00:17]} 51. Kg3 {[%clk 0:00:23]}  Qg5+ {[%clk 0:00:17]} 52. Kh2 {[%clk 0:00:21]}  Qf4+ {[%clk 0:00:17]} 53. Kg2 {[%clk 0:00:21]}  Qd2+ {[%clk 0:00:17]} 54. Kg3 {[%clk 0:00:21]}  Qe1+ {[%clk 0:00:18]} 55. Kg2 {[%clk 0:00:21]}  Qe2+ {[%clk 0:00:16]} 56. Kg3 {[%clk 0:00:21]}  b6 {[%clk 0:00:16]} 57. Qe8+ {[%clk 0:00:20]}  Kb4 {[%clk 0:00:16]} 58. Qe7+ {[%clk 0:00:20]}  Kb3 {[%clk 0:00:17]} 59. Qb7 {[%clk 0:00:19]}  Qxe5+ {[%clk 0:00:16]} 60. Kg2 {[%clk 0:00:18]}  Qe2+ {[%clk 0:00:16]} 61. Kg3 {[%clk 0:00:19]}  b5 {[%clk 0:00:17]} 62. Qb6 {[%clk 0:00:16]}  b4 {[%clk 0:00:17]} 63. Qd4 {[%clk 0:00:16]}  a3 {[%clk 0:00:17]} 64. h4 {[%clk 0:00:15]}  a2 {[%clk 0:00:17]} 65. Qa1 {[%clk 0:00:14]}  Qc2 {[%clk 0:00:14]} 66. h5 {[%clk 0:00:12]}  gxh5 {[%clk 0:00:13]} 67. Kh4 {[%clk 0:00:12]}  Qc3 {[%clk 0:00:13]} 68. Qd1+ {[%clk 0:00:12]}  Kc4 {[%clk 0:00:13]} 69. Qe2+ {[%clk 0:00:11]}  Kc5 {[%clk 0:00:13]} 70. Qxa2 {[%clk 0:00:11]}  Qc4+ {[%clk 0:00:13]} 71. Qxc4+ {[%clk 0:00:11]}  Kxc4 {[%clk 0:00:14]} 72. Kxh5 {[%clk 0:00:11]}  b3 {[%clk 0:00:14]} 0-1


[Site "https://www.chess.com"]

[Event "Titled Tuesday Blitz March 08 Early 2022"]
[White "Nguyen, Thi Minh Oanh"]
[Black "Miszler, Levente"]
[WhiteFideId "12404080"]
[BlackFideId "763276"]
[WhiteElo "1825"]
[BlackElo "1966"]
[Result "1-0"]
[Round "07"]
[TimeControl "180+1"]
[Date "2022.03.09"]
[WhiteClock "0:01:43"]
[BlackClock "0:01:55"]

1. d4 {[%clk 0:02:45]}  d5 {[%clk 0:02:58]} 2. Bf4 {[%clk 0:02:44]}  Nc6 {[%clk 0:02:55]} 3. e3 {[%clk 0:02:44]}  Bf5 {[%clk 0:02:52]} 4. c4 {[%clk 0:02:42]}  e6 {[%clk 0:02:48]} 5. Nc3 {[%clk 0:02:33]}  Nb4 {[%clk 0:02:43]} 6. Rc1 {[%clk 0:02:32]}  g5 {[%clk 0:02:29]} 7. Bg3 {[%clk 0:02:29]}  a6 {[%clk 0:02:28]} 8. a3 {[%clk 0:02:27]}  Nc6 {[%clk 0:02:28]} 9. cxd5 {[%clk 0:02:24]}  exd5 {[%clk 0:02:27]} 10. Qb3 {[%clk 0:02:23]}  Na5 {[%clk 0:02:17]} 11. Qxd5 {[%clk 0:02:18]}  Qxd5 {[%clk 0:02:13]} 12. Nxd5 {[%clk 0:02:19]}  Kd8 {[%clk 0:02:05]} 13. Bxc7+ {[%clk 0:02:09]}  Kd7 {[%clk 0:02:02]} 14. Nb6+ {[%clk 0:02:01]}  Ke8 {[%clk 0:01:58]} 15. Nxa8 {[%clk 0:01:59]}  Nb3 {[%clk 0:01:58]} 16. Rc3 {[%clk 0:01:58]}  Be6 {[%clk 0:01:55]} 17. Nf3 {[%clk 0:01:54]}  Ne7 {[%clk 0:01:55]} 18. Nxg5 {[%clk 0:01:48]}  Bd5 {[%clk 0:01:55]} 19. Nb6 {[%clk 0:01:43]} 1-0


[Site "https://www.chess.com"]

[Event "Titled Tuesday Blitz March 08 Early 2022"]
[White "Nozdrachev, Leonid"]
[Black "Samant Aditya S"]
[WhiteFideId "24113433"]
[BlackFideId "35080580"]
[WhiteElo "2118"]
[BlackElo "1916"]
[Result "0-1"]
[Round "07"]
[TimeControl "180+1"]
[Date "2022.03.09"]
[WhiteClock "0:00:23"]
[BlackClock "0:00:04"]

1. e4 {[%clk 0:03:00]}  c5 {[%clk 0:03:00]} 2. c3 {[%clk 0:03:00]}  d5 {[%clk 0:03:00]} 3. exd5 {[%clk 0:02:57]}  Qxd5 {[%clk 0:03:01]} 4. d4 {[%clk 0:02:57]}  Nc6 {[%clk 0:03:01]} 5. Nf3 {[%clk 0:02:57]}  Bf5 {[%clk 0:03:02]} 6. Be3 {[%clk 0:02:53]}  Nf6 {[%clk 0:03:01]} 7. c4 {[%clk 0:02:50]}  Qd8 {[%clk 0:02:41]} 8. d5 {[%clk 0:02:47]}  Nb4 {[%clk 0:02:40]} 9. Na3 {[%clk 0:02:46]}  e6 {[%clk 0:02:38]} 10. Nh4 {[%clk 0:02:41]}  Bg4 {[%clk 0:02:02]} 11. Qa4+ {[%clk 0:02:33]}  Nd7 {[%clk 0:01:54]} 12. dxe6 {[%clk 0:02:27]}  Bxe6 {[%clk 0:01:55]} 13. Nf3 {[%clk 0:02:17]}  Be7 {[%clk 0:01:52]} 14. Rd1 {[%clk 0:02:15]}  O-O {[%clk 0:01:40]} 15. Ne5 {[%clk 0:02:15]}  Nxe5 {[%clk 0:01:28]} 16. Rxd8 {[%clk 0:02:14]}  Rfxd8 {[%clk 0:01:29]} 17. Qb3 {[%clk 0:02:06]}  Nbd3+ {[%clk 0:01:08]} 18. Bxd3 {[%clk 0:02:04]}  Nxd3+ {[%clk 0:01:09]} 19. Ke2 {[%clk 0:02:03]}  b5 {[%clk 0:00:35]} 20. Rd1 {[%clk 0:01:39]}  bxc4 {[%clk 0:00:31]} 21. Nxc4 {[%clk 0:01:40]}  Ne5 {[%clk 0:00:24]} 22. Qb7 {[%clk 0:01:20]}  Bxc4+ {[%clk 0:00:21]} 23. Ke1 {[%clk 0:01:20]}  Bf6 {[%clk 0:00:19]} 24. Rd6 {[%clk 0:01:11]}  Nd3+ {[%clk 0:00:15]} 25. Kd2 {[%clk 0:01:08]}  Rdb8 {[%clk 0:00:15]} 26. Qc6 {[%clk 0:01:02]}  Rxb2+ {[%clk 0:00:15]} 27. Kd1 {[%clk 0:01:03]}  Rab8 {[%clk 0:00:15]} 28. Rxf6 {[%clk 0:00:55]}  gxf6 {[%clk 0:00:15]} 29. Qxf6 {[%clk 0:00:55]}  Bxa2 {[%clk 0:00:05]} 30. Bg5 {[%clk 0:00:23]}  Bb3# {[%clk 0:00:04]} 0-1


[Site "https://www.chess.com"]

[Event "Titled Tuesday Blitz March 08 Early 2022"]
[White "Odegov, Artem"]
[Black "Hua, Lefong"]
[WhiteFideId "34183644"]
[BlackFideId "2602253"]
[WhiteElo "2286"]
[BlackElo "2614"]
[Result "1-0"]
[Round "07"]
[TimeControl "180+1"]
[Date "2022.03.09"]
[WhiteClock "0:01:55"]
[BlackClock "0:02:11"]

1. d4 {[%clk 0:03:00]}  Nf6 {[%clk 0:03:00]} 2. c4 {[%clk 0:03:00]}  g6 {[%clk 0:03:00]} 3. Nc3 {[%clk 0:02:59]}  Bg7 {[%clk 0:03:00]} 4. e4 {[%clk 0:02:58]}  d6 {[%clk 0:03:01]} 5. h3 {[%clk 0:02:59]}  O-O {[%clk 0:03:00]} 6. Be3 {[%clk 0:03:00]}  c5 {[%clk 0:03:00]} 7. d5 {[%clk 0:03:00]}  e6 {[%clk 0:03:00]} 8. Bd3 {[%clk 0:03:01]}  exd5 {[%clk 0:03:01]} 9. cxd5 {[%clk 0:03:02]}  a6 {[%clk 0:02:59]} 10. a4 {[%clk 0:03:01]}  Nbd7 {[%clk 0:02:51]} 11. Nf3 {[%clk 0:03:01]}  Nh5 {[%clk 0:02:51]} 12. O-O {[%clk 0:02:59]}  Ne5 {[%clk 0:02:51]} 13. Nxe5 {[%clk 0:02:59]}  Bxe5 {[%clk 0:02:52]} 14. f4 {[%clk 0:02:56]}  Bd4 {[%clk 0:02:45]} 15. Bxd4 {[%clk 0:02:56]}  cxd4 {[%clk 0:02:46]} 16. Ne2 {[%clk 0:02:56]}  Qb6 {[%clk 0:02:46]} 17. Qd2 {[%clk 0:02:51]}  Bd7 {[%clk 0:02:43]} 18. a5 {[%clk 0:02:44]}  Qa7 {[%clk 0:02:40]} 19. Qb4 {[%clk 0:02:42]}  Rad8 {[%clk 0:02:33]} 20. Qxd4 {[%clk 0:02:38]}  Qb8 {[%clk 0:02:33]} 21. Rac1 {[%clk 0:02:36]}  Rfe8 {[%clk 0:02:32]} 22. Rc3 {[%clk 0:02:27]}  Nf6 {[%clk 0:02:30]} 23. Rfc1 {[%clk 0:02:25]}  Bb5 {[%clk 0:02:30]} 24. Bxb5 {[%clk 0:02:21]}  Rxe4 {[%clk 0:02:23]} 25. Qxf6 {[%clk 0:02:21]}  axb5 {[%clk 0:02:23]} 26. Qxd8+ {[%clk 0:02:02]}  Qxd8 {[%clk 0:02:23]} 27. Rc8 {[%clk 0:02:02]}  Qxc8 {[%clk 0:02:22]} 28. Rxc8+ {[%clk 0:02:03]}  Kg7 {[%clk 0:02:22]} 29. Nc3 {[%clk 0:02:03]}  Rb4 {[%clk 0:02:23]} 30. Rb8 {[%clk 0:02:02]}  Rxb2 {[%clk 0:02:22]} 31. Rxb7 {[%clk 0:02:03]}  b4 {[%clk 0:02:23]} 32. Nb5 {[%clk 0:02:03]}  Rd2 {[%clk 0:02:20]} 33. Nxd6 {[%clk 0:02:02]}  Rxd5 {[%clk 0:02:20]} 34. Ne8+ {[%clk 0:01:59]}  Kf8 {[%clk 0:02:20]} 35. a6 {[%clk 0:01:56]}  Kxe8 {[%clk 0:02:11]} 36. a7 {[%clk 0:01:55]} 1-0


[Site "https://www.chess.com"]

[Event "Titled Tuesday Blitz March 08 Early 2022"]
[White "Osmonbekov, Talaibek"]
[Black "Levine, David"]
[WhiteFideId "2017253"]
[BlackFideId "2011611"]
[WhiteElo "2135"]
[BlackElo "2175"]
[Result "1-0"]
[Round "07"]
[TimeControl "180+1"]
[Date "2022.03.09"]
[WhiteClock "0:01:16"]
[BlackClock "0:00:32"]

1. d4 {[%clk 0:02:57]}  Nf6 {[%clk 0:02:56]} 2. Nc3 {[%clk 0:02:57]}  d5 {[%clk 0:02:55]} 3. Bf4 {[%clk 0:02:57]}  g6 {[%clk 0:02:53]} 4. e3 {[%clk 0:02:57]}  Bg7 {[%clk 0:02:53]} 5. h4 {[%clk 0:02:57]}  h5 {[%clk 0:02:47]} 6. Nf3 {[%clk 0:02:58]}  c5 {[%clk 0:02:40]} 7. Nb5 {[%clk 0:02:54]}  Na6 {[%clk 0:02:37]} 8. c3 {[%clk 0:02:54]}  O-O {[%clk 0:02:30]} 9. Ne5 {[%clk 0:02:50]}  Ne4 {[%clk 0:02:23]} 10. f3 {[%clk 0:02:43]}  Nd6 {[%clk 0:02:22]} 11. a4 {[%clk 0:02:39]}  Nc7 {[%clk 0:02:14]} 12. dxc5 {[%clk 0:02:32]}  Ncxb5 {[%clk 0:02:03]} 13. axb5 {[%clk 0:02:31]}  Nf5 {[%clk 0:02:02]} 14. Qd2 {[%clk 0:02:25]}  e6 {[%clk 0:01:18]} 15. g3 {[%clk 0:02:13]}  Qe8 {[%clk 0:00:59]} 16. e4 {[%clk 0:02:03]}  f6 {[%clk 0:00:54]} 17. Nxg6 {[%clk 0:01:51]}  Qxg6 {[%clk 0:00:49]} 18. exf5 {[%clk 0:01:50]}  Qxf5 {[%clk 0:00:49]} 19. Bd3 {[%clk 0:01:45]}  e5 {[%clk 0:00:44]} 20. Bxf5 {[%clk 0:01:44]}  Bxf5 {[%clk 0:00:44]} 21. Qxd5+ {[%clk 0:01:33]}  Kh7 {[%clk 0:00:43]} 22. Be3 {[%clk 0:01:32]}  Rfd8 {[%clk 0:00:40]} 23. Qxb7 {[%clk 0:01:28]}  Bd3 {[%clk 0:00:36]} 24. Rxa7 {[%clk 0:01:22]}  Rxa7 {[%clk 0:00:32]} 25. Qxa7 {[%clk 0:01:21]}  Bxb5 {[%clk 0:00:32]} 26. Qb6 {[%clk 0:01:16]} 1-0


[Site "https://www.chess.com"]

[Event "Titled Tuesday Blitz March 08 Early 2022"]
[White "Petrova, Irina"]
[Black "Marcinczyk, Monika"]
[WhiteFideId "14124122"]
[BlackFideId "1192051"]
[WhiteElo "1993"]
[BlackElo "1783"]
[Result "1-0"]
[Round "07"]
[TimeControl "180+1"]
[Date "2022.03.09"]
[WhiteClock "0:02:17"]
[BlackClock "0:01:05"]

1. e4 {[%clk 0:03:00]}  e5 {[%clk 0:02:43]} 2. Nf3 {[%clk 0:03:00]}  Nc6 {[%clk 0:02:39]} 3. Bb5 {[%clk 0:03:01]}  a6 {[%clk 0:02:39]} 4. Ba4 {[%clk 0:03:01]}  Nf6 {[%clk 0:02:38]} 5. d3 {[%clk 0:03:01]}  b5 {[%clk 0:02:39]} 6. Bb3 {[%clk 0:03:01]}  Bc5 {[%clk 0:02:39]} 7. Nc3 {[%clk 0:03:01]}  d6 {[%clk 0:02:38]} 8. Nd5 {[%clk 0:03:01]}  h6 {[%clk 0:02:25]} 9. c3 {[%clk 0:03:00]}  Rb8 {[%clk 0:02:15]} 10. h3 {[%clk 0:02:52]}  Nxd5 {[%clk 0:02:12]} 11. Bxd5 {[%clk 0:02:52]}  Ne7 {[%clk 0:02:12]} 12. Bb3 {[%clk 0:02:52]}  O-O {[%clk 0:02:12]} 13. g4 {[%clk 0:02:46]}  Ng6 {[%clk 0:02:11]} 14. g5 {[%clk 0:02:29]}  h5 {[%clk 0:01:47]} 15. Nh2 {[%clk 0:02:29]}  Bxh3 {[%clk 0:01:35]} 16. Qxh5 {[%clk 0:02:24]}  Be6 {[%clk 0:01:05]} 17. Ng4 {[%clk 0:02:17]} 1-0


[Site "https://www.chess.com"]

[Event "Titled Tuesday Blitz March 08 Early 2022"]
[White "Petrovic, Aleksa"]
[Black "Ahn, Hongjin"]
[WhiteFideId "967629"]
[BlackFideId "13201492"]
[WhiteElo "2245"]
[BlackElo "1873"]
[Result "1-0"]
[Round "07"]
[TimeControl "180+1"]
[Date "2022.03.09"]
[WhiteClock "0:00:04"]
[BlackClock "0:00:06"]

1. d4 {[%clk 0:03:00]}  Nf6 {[%clk 0:02:57]} 2. c4 {[%clk 0:03:01]}  e6 {[%clk 0:02:57]} 3. Nc3 {[%clk 0:03:01]}  d5 {[%clk 0:02:56]} 4. Nf3 {[%clk 0:02:59]}  c6 {[%clk 0:02:49]} 5. Bg5 {[%clk 0:02:51]}  Nbd7 {[%clk 0:02:46]} 6. e3 {[%clk 0:02:49]}  Qa5 {[%clk 0:02:42]} 7. Nd2 {[%clk 0:02:48]}  dxc4 {[%clk 0:02:39]} 8. Bxf6 {[%clk 0:02:48]}  gxf6 {[%clk 0:02:37]} 9. Nxc4 {[%clk 0:02:47]}  Qc7 {[%clk 0:02:38]} 10. g3 {[%clk 0:02:41]}  h5 {[%clk 0:02:31]} 11. h4 {[%clk 0:02:40]}  b5 {[%clk 0:02:29]} 12. Nd2 {[%clk 0:02:38]}  f5 {[%clk 0:02:30]} 13. Bg2 {[%clk 0:02:36]}  Bb7 {[%clk 0:02:27]} 14. Rc1 {[%clk 0:02:32]}  a6 {[%clk 0:02:22]} 15. O-O {[%clk 0:02:13]}  c5 {[%clk 0:02:14]} 16. dxc5 {[%clk 0:01:54]}  Nxc5 {[%clk 0:02:03]} 17. b4 {[%clk 0:01:40]}  Bxg2 {[%clk 0:01:53]} 18. Kxg2 {[%clk 0:01:41]}  Qb7+ {[%clk 0:01:34]} 19. Nf3 {[%clk 0:01:05]}  Rd8 {[%clk 0:01:32]} 20. Qe2 {[%clk 0:00:53]}  Nd3 {[%clk 0:01:25]} 21. Rcd1 {[%clk 0:00:50]}  Nxb4 {[%clk 0:01:24]} 22. Rxd8+ {[%clk 0:00:47]}  Kxd8 {[%clk 0:01:25]} 23. e4 {[%clk 0:00:40]}  fxe4 {[%clk 0:01:18]} 24. Nxe4 {[%clk 0:00:36]}  Be7 {[%clk 0:01:18]} 25. Qd2+ {[%clk 0:00:22]}  Ke8 {[%clk 0:00:59]} 26. Nd6+ {[%clk 0:00:17]}  Bxd6 {[%clk 0:00:57]} 27. Qxd6 {[%clk 0:00:18]}  Nd5 {[%clk 0:00:55]} 28. Kh2 {[%clk 0:00:18]}  Qc7 {[%clk 0:00:50]} 29. Qxa6 {[%clk 0:00:17]}  Ke7 {[%clk 0:00:45]} 30. Qxb5 {[%clk 0:00:17]}  Rg8 {[%clk 0:00:42]} 31. Qe2 {[%clk 0:00:15]}  Rg4 {[%clk 0:00:30]} 32. Ne5 {[%clk 0:00:13]}  Rg7 {[%clk 0:00:28]} 33. Qxh5 {[%clk 0:00:13]}  Qc2 {[%clk 0:00:23]} 34. Qh6 {[%clk 0:00:11]}  Rg8 {[%clk 0:00:22]} 35. h5 {[%clk 0:00:10]}  Qe2 {[%clk 0:00:20]} 36. Qh7 {[%clk 0:00:05]}  Qxf1 {[%clk 0:00:13]} 37. Qxg8 {[%clk 0:00:05]}  Qxf2+ {[%clk 0:00:13]} 38. Kh3 {[%clk 0:00:05]}  Qf5+ {[%clk 0:00:11]} 39. Ng4 {[%clk 0:00:05]}  Qxh5+ {[%clk 0:00:10]} 40. Kg2 {[%clk 0:00:06]}  Qf5 {[%clk 0:00:11]} 41. Nf2 {[%clk 0:00:04]}  Ne3+ {[%clk 0:00:10]} 42. Kg1 {[%clk 0:00:04]}  Qf3 {[%clk 0:00:09]} 43. Qg5+ {[%clk 0:00:04]}  Ke8 {[%clk 0:00:09]} 44. Qb5+ {[%clk 0:00:04]}  Kf8 {[%clk 0:00:09]} 45. Qc5+ {[%clk 0:00:04]}  Kg7 {[%clk 0:00:08]} 46. Qg5+ {[%clk 0:00:04]}  Kf8 {[%clk 0:00:09]} 47. Qc5+ {[%clk 0:00:04]}  Ke8 {[%clk 0:00:09]} 48. Qb5+ {[%clk 0:00:04]}  Ke7 {[%clk 0:00:09]} 49. Qc5+ {[%clk 0:00:04]}  Kf6 {[%clk 0:00:09]} 50. Qd4+ {[%clk 0:00:04]}  Kg6 {[%clk 0:00:07]} 51. Qe4+ {[%clk 0:00:04]}  Kg7 {[%clk 0:00:06]} 52. Qxf3 {[%clk 0:00:04]} 1-0


[Site "https://www.chess.com"]

[Event "Titled Tuesday Blitz March 08 Early 2022"]
[White "Pinheiro, Iung Alicio de O."]
[Black "Begunov, Konstantin"]
[WhiteFideId "2104350"]
[BlackFideId "4118510"]
[WhiteElo "2559"]
[BlackElo "2262"]
[Result "0-1"]
[Round "07"]
[TimeControl "180+1"]
[Date "2022.03.09"]
[WhiteClock "0:00:12"]
[BlackClock "0:00:16"]

1. e4 {[%clk 0:02:59]}  c5 {[%clk 0:02:50]} 2. Nf3 {[%clk 0:02:57]}  d6 {[%clk 0:02:50]} 3. c3 {[%clk 0:02:57]}  Nf6 {[%clk 0:02:50]} 4. h3 {[%clk 0:02:57]}  Nc6 {[%clk 0:02:49]} 5. Bd3 {[%clk 0:02:56]}  e6 {[%clk 0:02:45]} 6. O-O {[%clk 0:02:56]}  d5 {[%clk 0:02:42]} 7. e5 {[%clk 0:02:53]}  Nd7 {[%clk 0:02:42]} 8. Bb5 {[%clk 0:02:54]}  Qc7 {[%clk 0:02:40]} 9. d4 {[%clk 0:02:46]}  a6 {[%clk 0:02:36]} 10. Bxc6 {[%clk 0:02:40]}  Qxc6 {[%clk 0:02:36]} 11. Re1 {[%clk 0:02:27]}  b5 {[%clk 0:02:30]} 12. Nbd2 {[%clk 0:02:26]}  Be7 {[%clk 0:02:28]} 13. Nf1 {[%clk 0:02:25]}  Qb6 {[%clk 0:02:26]} 14. Ng3 {[%clk 0:02:25]}  b4 {[%clk 0:02:16]} 15. Nh5 {[%clk 0:02:21]}  g6 {[%clk 0:02:15]} 16. Nf4 {[%clk 0:01:55]}  a5 {[%clk 0:02:06]} 17. Nd3 {[%clk 0:01:49]}  Ba6 {[%clk 0:02:00]} 18. Be3 {[%clk 0:01:43]}  Bxd3 {[%clk 0:01:57]} 19. Qxd3 {[%clk 0:01:43]}  c4 {[%clk 0:01:57]} 20. Qd2 {[%clk 0:01:43]}  Rb8 {[%clk 0:01:55]} 21. Bg5 {[%clk 0:01:42]}  Qd8 {[%clk 0:01:47]} 22. Qf4 {[%clk 0:01:38]}  Bxg5 {[%clk 0:01:34]} 23. Nxg5 {[%clk 0:01:37]}  Qe7 {[%clk 0:01:34]} 24. Re3 {[%clk 0:01:16]}  Rb7 {[%clk 0:01:31]} 25. b3 {[%clk 0:01:14]}  Nb6 {[%clk 0:01:26]} 26. h4 {[%clk 0:01:04]}  h6 {[%clk 0:01:13]} 27. Nf3 {[%clk 0:00:59]}  Kd7 {[%clk 0:01:11]} 28. Nd2 {[%clk 0:00:59]}  g5 {[%clk 0:01:00]} 29. Qf3 {[%clk 0:00:49]}  Rc8 {[%clk 0:00:56]} 30. Rc1 {[%clk 0:00:39]}  Rbc7 {[%clk 0:00:55]} 31. cxb4 {[%clk 0:00:29]}  axb4 {[%clk 0:00:51]} 32. Ree1 {[%clk 0:00:26]}  c3 {[%clk 0:00:47]} 33. Nf1 {[%clk 0:00:26]}  Ra8 {[%clk 0:00:41]} 34. Rc2 {[%clk 0:00:25]}  Rca7 {[%clk 0:00:41]} 35. Ree2 {[%clk 0:00:25]}  gxh4 {[%clk 0:00:40]} 36. Ne3 {[%clk 0:00:26]}  Ke8 {[%clk 0:00:37]} 37. Ng4 {[%clk 0:00:26]}  Qg5 {[%clk 0:00:36]} 38. Nf6+ {[%clk 0:00:25]}  Ke7 {[%clk 0:00:35]} 39. Kh2 {[%clk 0:00:25]}  Nd7 {[%clk 0:00:32]} 40. Ng4 {[%clk 0:00:24]}  h5 {[%clk 0:00:30]} 41. Ne3 {[%clk 0:00:25]}  Nf8 {[%clk 0:00:26]} 42. Nxd5+ {[%clk 0:00:21]}  exd5 {[%clk 0:00:24]} 43. Qxd5 {[%clk 0:00:22]}  Ne6 {[%clk 0:00:20]} 44. Qd6+ {[%clk 0:00:19]}  Ke8 {[%clk 0:00:20]} 45. g3 {[%clk 0:00:18]}  Rd7 {[%clk 0:00:19]} 46. Qc6 {[%clk 0:00:17]}  Rd8 {[%clk 0:00:18]} 47. d5 {[%clk 0:00:17]}  Nd4 {[%clk 0:00:18]} 48. e6 {[%clk 0:00:17]}  Nxc6 {[%clk 0:00:16]} 49. exd7+ {[%clk 0:00:15]}  Kxd7 {[%clk 0:00:17]} 50. dxc6+ {[%clk 0:00:15]}  Kxc6 {[%clk 0:00:17]} 51. Re4 {[%clk 0:00:13]}  hxg3+ {[%clk 0:00:17]} 52. Kh3 {[%clk 0:00:13]}  Rd2 {[%clk 0:00:16]} 53. Rc4+ {[%clk 0:00:12]}  Kb5 {[%clk 0:00:16]} 0-1


[Site "https://www.chess.com"]